[Event "HUN-chT Youth-Children 2018"]
[Site "Zalakaros"]
[Date "2018.07.26"]
[Round "2"]
[White "Vanczak, Tamas"]
[Black "Tubak, Daniel"]
[Result "1-0"]
[ECO "A48"]
[WhiteElo "2339"]
[BlackElo "2168"]
[Annotator "NA"]
[PlyCount "103"]
[EventDate "2018.07.26"]
[EventType "team-tourn"]
[EventCountry "HUN"]
[SourceTitle "playchess.com"]
[Source "ChessBase"]
[SourceQuality "1"]
[TimeControl "5400+30"]

1. d4 {[%emt 0:00:00]} Nf6 {[%emt 0:00:07]} 2. Nf3 {[%emt 0:00:15]} g6 {[%emt 0:00:08]} 3. Bg5 {[%emt 0:00:28]} Bg7 {[%emt 0:00:12]} 4. Nbd2 {[%emt 0:00:24]} d5 {[%emt 0:00:49]} 5. e3 {[%emt 0:00:56]} O-O {[%emt 0:01:21]} 6. Bd3 {[%emt 0:01:16]} c5 {[%emt 0:01:45]} 7. c3 {[%emt 0:00:54]} Nc6 {[%emt 0:03:44]} 8. dxc5 {[%emt 0:08:26]} h6 {[%emt 0:04:17]} 9. Bxf6 {[%emt 0:01:00]} Bxf6 {[%emt 0:00:11]} 10. O-O {[%emt 0:01:10]} a5 {[%emt 0:01:38]} 11. e4 {[%emt 0:03:04]} Bg7 {[%emt 0:05:02]} 12. Qe2 {[%emt 0:07:25]} d4 {[%emt 0:04:06]} 13. Nc4 {[%emt 0:03:37]} dxc3 {[%emt 0:03:15]} 14. bxc3 {[%emt 0:00:14]} Bxc3 {[%emt 0:01:12]} 15. Rad1 {[%emt 0:02:36]} Bg4 {[%emt 0:01:21]} 16. Qe3 {[%emt 0:03:02]} Bg7 {[%emt 0:01:40]} 17. Nb6 {[%emt 0:05:23]} Rb8 {[%emt 0:01:06]} 18. Bb5 {[%emt 0:04:42]} Qe8 {[%emt 0:01:54]} 19. a4 {[%emt 0:02:40]} Rd8 {[%emt 0:06:06]} 20. Qf4 {[%emt 0:03:49]} Be6 {[%emt 0:04:36]} 21. Nd5 {[%emt 0:07:10]} Rb8 {[%emt 0:02:26]} 22. Qc7 {[%emt 0:02:37]} Bxd5 {[%emt 0:07:19]} 23. exd5 {[%emt 0:01:04]} Qd8 {[%emt 0:00:05]} 24. Qxd8 {[%emt 0:02:09]} Nxd8 {[%emt 0:00:01]} 25. Bd7 {[%emt 0:03:25]} Bb2 {[%emt 0:02:03]} 26. Rd3 {[%emt 0:02:14]} Ra8 {[%emt 0:01:11]} 27. Rb1 {[%emt 0:02:12]} Bf6 {[%emt 0:00:10]} 28. Rb6 {[%emt 0:01:10]} Kg7 {[%emt 0:00:47]} 29. Nd4 {[%emt 0:07:03]} Bxd4 {[%emt 0:01:18]} 30. Rxd4 {[%emt 0:00:06]} e6 {[%emt 0:02:12]} 31. c6 {[%emt 0:03:08]} bxc6 {[%emt 0:01:37]} 32. dxc6 {[%emt 0:00:07]} Ra7 {[%emt 0:00:25]} 33. Rc4 {[%emt 0:01:34]} Rc7 {[%emt 0:00:07]} 34. Rb5 {[%emt 0:00:34]} f5 {[%emt 0:01:11]} 35. Rxa5 {[%emt 0:01:30]} Nf7 {[%emt 0:01:15]} 36. Rb4 {[%emt 0:01:52]} Rd8 {[%emt 0:00:49]} 37. h3 {[%emt 0:00:37]} Kf6 {[%emt 0:00:15]} 38. f4 {[%emt 0:04:45]} e5 {[%emt 0:00:42]} 39. Rab5 {[%emt 0:01:28]} Rcxd7 {[%emt 0:03:16]} 40. cxd7 {[%emt 0:00:09]} Rxd7 {[%emt 0:00:05]} 41. Rb6+ {[%emt 0:01:13]} Nd6 {[%emt 0:00:08]} 42. a5 {[%emt 0:00:38]} exf4 {[%emt 0:00:09]} 43. a6 {[%emt 0:00:18]} Ke5 {[%emt 0:00:06]} 44. Rb7 {[%emt 0:02:24]} Rd8 {[%emt 0:00:09]} 45. Rc7 {[%emt 0:00:53]} Ne4 {[%emt 0:00:24]} 46. Rb1 {[%emt 0:00:27]} f3 {[%emt 0:01:22]} 47. gxf3 {[%emt 0:00:49]} Nd2 {[%emt 0:00:09]} 48. Re1+ {[%emt 0:02:13]} Kf4 {[%emt 0:00:18]} 49. Kf2 {[%emt 0:00:09]} Rd6 {[%emt 0:00:57]} 50. Ra1 {[%emt 0:00:35]} Rd4 {[%emt 0:01:02]} 51. a7 {[%emt 0:01:31]} Nxf3 {[%emt 0:00:03]} 52. Ra2 {[%emt 0:00:20]} 1-0

[Event "HUN-chT Youth-Children 2018"]
[Site "Zalakaros"]
[Date "2018.07.26"]
[Round "2"]
[White "Papp, Levente"]
[Black "Koszta, Benedek"]
[Result "1-0"]
[ECO "A30"]
[WhiteElo "2311"]
[BlackElo "1901"]
[Annotator "NA"]
[PlyCount "67"]
[EventDate "2018.07.26"]
[EventType "team-tourn"]
[EventCountry "HUN"]
[SourceTitle "playchess.com"]
[Source "ChessBase"]
[SourceQuality "1"]
[TimeControl "5400+30"]

1. c4 {[%emt 0:00:00]} c5 {[%emt 0:00:14]} 2. g3 {[%emt 0:00:00]} Nf6 {[%emt 0:00:29]} 3. Bg2 {[%emt 0:00:00]} e6 {[%emt 0:00:12]} 4. Nf3 {[%emt 0:00:27]} d5 {[%emt 0:00:35]} 5. cxd5 {[%emt 0:00:06]} exd5 {[%emt 0:00:44]} 6. d4 {[%emt 0:00:06]} Nc6 {[%emt 0:00:56]} 7. O-O {[%emt 0:00:11]} Be6 {[%emt 0:03:32]} 8. Nc3 {[%emt 0:01:45]} Be7 {[%emt 0:02:01]} 9. Be3 {[%emt 0:05:41]} c4 {[%emt 0:01:41]} 10. Ne5 {[%emt 0:04:43]} O-O {[%emt 0:02:00]} 11. Nxc4 {[%emt 0:03:42]} dxc4 {[%emt 0:02:37]} 12. d5 {[%emt 0:00:32]} Bxd5 {[%emt 0:02:28]} 13. Nxd5 {[%emt 0:00:00]} Nxd5 {[%emt 0:01:07]} 14. Qxd5 {[%emt 0:01:57]} Qxd5 {[%emt 0:04:05]} 15. Bxd5 {[%emt 0:00:05]} Ne5 {[%emt 0:00:40]} 16. Bf4 {[%emt 0:01:28]} Ng6 {[%emt 0:01:36]} 17. Bxb7 {[%emt 0:03:50]} Rad8 {[%emt 0:01:19]} 18. Be3 {[%emt 0:10:49]} Bf6 {[%emt 0:02:43]} 19. Rac1 {[%emt 0:00:24]} Rb8 {[%emt 0:00:26]} 20. Ba6 {[%emt 0:01:55]} Rxb2 {[%emt 0:00:40]} 21. Bxc4 {[%emt 0:00:12]} Ne5 {[%emt 0:00:50]} 22. a4 {[%emt 0:00:40]} Nxc4 {[%emt 0:02:54]} 23. Rxc4 {[%emt 0:02:14]} a6 {[%emt 0:01:55]} 24. Rc6 {[%emt 0:01:23]} Ra8 {[%emt 0:00:24]} 25. Rfc1 {[%emt 0:00:12]} h6 {[%emt 0:00:19]} 26. Rc8+ {[%emt 0:01:36]} Rxc8 {[%emt 0:00:06]} 27. Rxc8+ {[%emt 0:00:04]} Kh7 {[%emt 0:00:20]} 28. Ra8 {[%emt 0:00:26]} Rxe2 {[%emt 0:02:15]} 29. Rxa6 {[%emt 0:00:04]} Ra2 {[%emt 0:00:08]} 30. Ra7 {[%emt 0:00:15]} Kg6 {[%emt 0:00:22]} 31. a5 {[%emt 0:00:21]} Bc3 {[%emt 0:04:04]} 32. a6 {[%emt 0:00:20]} Be5 {[%emt 0:01:16]} 33. Ra8 {[%emt 0:00:33]} Bc3 {[%emt 0:00:16]} 34. a7 {[%emt 0:00:10]} 1-0

[Event "HUN-chT Youth-Children 2018"]
[Site "Zalakaros"]
[Date "2018.07.26"]
[Round "2"]
[White "Kokeny, Norbert Adrian"]
[Black "Krstulovic, Alex"]
[Result "1/2-1/2"]
[ECO "A07"]
[WhiteElo "2249"]
[BlackElo "2289"]
[Annotator "NA"]
[PlyCount "82"]
[EventDate "2018.07.26"]
[EventType "team-tourn"]
[EventCountry "HUN"]
[SourceTitle "playchess.com"]
[Source "ChessBase"]
[SourceQuality "1"]
[TimeControl "5400+30"]

1. Nf3 {[%emt 0:00:00]} d5 {[%emt 0:00:07]} 2. g3 {[%emt 0:00:00]} Nf6 {[%emt 0:00:06]} 3. Bg2 {[%emt 0:00:00]} c6 {[%emt 0:00:05]} 4. O-O {[%emt 0:00:09]} Bg4 {[%emt 0:00:05]} 5. d4 {[%emt 0:00:06]} e6 {[%emt 0:00:08]} 6. c4 {[%emt 0:00:07]} Nbd7 {[%emt 0:00:07]} 7. Qb3 {[%emt 0:00:09]} Qb6 {[%emt 0:00:05]} 8. Nc3 {[%emt 0:00:20]} Be7 {[%emt 0:00:12]} 9. Re1 {[%emt 0:00:50]} Bxf3 10. Bxf3 {[%emt 0:04:18]} Qxd4 {[%emt 0:00:12]} 11. Qxb7 {[%emt 0:05:54]} O-O {[%emt 0:00:07]} 12. cxd5 {[%emt 0:03:03]} cxd5 {[%emt 0:00:00]} 13. Be3 Qb4 14. Qxb4 {[%emt 0:09:16]} Bxb4 {[%emt 0:00:13]} 15. Rec1 {[%emt 0:05:23]} Nb6 {[%emt 0:09:22]} 16. Bxb6 {[%emt 0:04:35]} axb6 {[%emt 0:00:09]} 17. Nb5 {[%emt 0:00:44]} Rfc8 {[%emt 0:10:12]} 18. a3 {[%emt 0:25:43]} Bd2 {[%emt 0:03:21]} 19. Rxc8+ {[%emt 0:00:45]} Rxc8 {[%emt 0:00:07]} 20. b4 {[%emt 0:05:18]} Nd7 {[%emt 0:06:46]} 21. Ra2 {[%emt 0:02:03]} Bg5 {[%emt 0:00:38]} 22. Kg2 {[%emt 0:01:57]} Be7 {[%emt 0:04:26]} 23. e4 {[%emt 0:02:27]} dxe4 {[%emt 0:03:06]} 24. Bxe4 {[%emt 0:00:11]} f5 {[%emt 0:00:20]} 25. Bf3 {[%emt 0:05:09]} Ne5 {[%emt 0:01:31]} 26. Re2 {[%emt 0:01:03]} Nxf3 {[%emt 0:00:57]} 27. Kxf3 {[%emt 0:00:08]} Kf7 {[%emt 0:00:07]} 28. Nd4 {[%emt 0:01:42]} Rc4 {[%emt 0:04:30]} 29. Nb5 {[%emt 0:01:29]} g5 {[%emt 0:04:01]} 30. Ke3 {[%emt 0:01:36]} Kf6 {[%emt 0:04:43]} 31. Kd3 {[%emt 0:01:25]} Rc8 {[%emt 0:00:06]} 32. f4 {[%emt 0:00:34]} gxf4 {[%emt 0:03:34]} 33. gxf4 {[%emt 0:00:06]} Kf7 {[%emt 0:00:44]} 34. Rc2 {[%emt 0:04:36]} Rxc2 {[%emt 0:01:06]} 35. Kxc2 {[%emt 0:00:05]} Kf6 {[%emt 0:00:38]} 36. Kd3 {[%emt 0:05:28]} e5 {[%emt 0:01:36]} 37. Nc7 {[%emt 0:00:51]} Bd8 {[%emt 0:02:37]} 38. Ne8+ {[%emt 0:03:52]} Ke7 {[%emt 0:00:35]} 39. Ng7 {[%emt 0:00:08]} Kf6 {[%emt 0:00:16]} 40. Ne8+ {[%emt 0:00:06]} Ke7 {[%emt 0:00:20]} 41. Ng7 {[%emt 0:00:11]} Kf6 {[%emt 0:02:49] Ke4} 1/2-1/2

[Event "HUN-chT Youth-Children 2018"]
[Site "Zalakaros"]
[Date "2018.07.26"]
[Round "2"]
[White "Ugroczky, Peter"]
[Black "Diller, Denis"]
[Result "1/2-1/2"]
[ECO "B38"]
[WhiteElo "2247"]
[BlackElo "2057"]
[Annotator "NA"]
[PlyCount "116"]
[EventDate "2018.07.26"]
[EventType "team-tourn"]
[EventCountry "HUN"]
[SourceTitle "playchess.com"]
[Source "ChessBase"]
[SourceQuality "1"]
[TimeControl "5400+30"]

1. e4 {[%emt 0:00:00]} c5 {[%emt 0:00:34]} 2. Nf3 {[%emt 0:00:00]} Nc6 {[%emt 0:00:04]} 3. d4 {[%emt 0:00:00]} cxd4 {[%emt 0:00:08]} 4. Nxd4 {[%emt 0:00:00]} g6 {[%emt 0:00:07]} 5. c4 {[%emt 0:02:21]} Bg7 6. Be3 {[%emt 0:01:39]} Nf6 {[%emt 0:02:17]} 7. Nc3 {[%emt 0:02:26]} O-O {[%emt 0:07:47]} 8. Be2 {[%emt 0:01:26]} d6 {[%emt 0:02:03]} 9. O-O {[%emt 0:02:43]} Bd7 {[%emt 0:03:46]} 10. Rc1 {[%emt 0:00:28]} Rc8 {[%emt 0:02:46]} 11. b3 Nxd4 {[%emt 0:00:01]} 12. Bxd4 {[%emt 0:00:53]} Bc6 {[%emt 0:01:39]} 13. Qd3 {[%emt 0:03:57]} a5 {[%emt 0:01:13]} 14. Rfd1 {[%emt 0:03:25]} Nd7 {[%emt 0:07:29]} 15. Bg4 Rc7 16. Bxg7 {[%emt 0:04:57]} Kxg7 {[%emt 0:00:40]} 17. Nd5 {[%emt 0:00:25]} Bxd5 {[%emt 0:04:46]} 18. exd5 {[%emt 0:00:51]} Nc5 {[%emt 0:00:10]} 19. Qc3+ {[%emt 0:00:38]} Kg8 {[%emt 0:00:15]} 20. Qxa5 {[%emt 0:02:35]} f5 {[%emt 0:00:43]} 21. Bf3 {[%emt 0:02:54]} Qd7 {[%emt 0:00:39]} 22. b4 {[%emt 0:02:48]} Ne4 {[%emt 0:00:00]} 23. Bxe4 {[%emt 0:01:14]} fxe4 {[%emt 0:00:40]} 24. Re1 {[%emt 0:03:53]} Rfc8 {[%emt 0:00:06]} 25. Rxe4 {[%emt 0:01:52]} b5 26. Qb6 bxc4 {[%emt 0:05:24]} 27. Qe3 {[%emt 0:01:57]} Qb5 {[%emt 0:01:42]} 28. Qd2 {[%emt 0:09:38]} c3 {[%emt 0:02:16]} 29. Qd4 {[%emt 0:10:21]} Rc4 {[%emt 0:12:39]} 30. Qe3 {[%emt 0:01:04]} Qxd5 {[%emt 0:04:08]} 31. Rxe7 {[%emt 0:00:51]} c2 {[%emt 0:05:59]} 32. h3 {[%emt 0:02:26]} R8c7 {[%emt 0:09:31]} 33. Rxc7 {[%emt 0:03:44]} Rxc7 {[%emt 0:00:08]} 34. Qb3 {[%emt 0:00:25]} Qxb3 {[%emt 0:03:44]} 35. axb3 {[%emt 0:01:06]} Rc3 {[%emt 0:00:05]} 36. Kf1 {[%emt 0:00:35]} Rxb3 {[%emt 0:00:37]} 37. Rxc2 {[%emt 0:00:07]} Rxb4 {[%emt 0:00:05]} 38. Rc7 {[%emt 0:00:46]} Rb1+ {[%emt 0:02:02]} 39. Ke2 {[%emt 0:00:11]} Rb2+ {[%emt 0:01:11]} 40. Kf3 {[%emt 0:00:58]} Rb3+ {[%emt 0:00:25]} 41. Kg4 {[%emt 0:00:31]} Rb2 {[%emt 0:00:32]} 42. Kg3 {[%emt 0:00:22]} d5 {[%emt 0:00:26]} 43. Rd7 {[%emt 0:01:06]} Rd2 {[%emt 0:00:17]} 44. f4 {[%emt 0:00:43]} d4 {[%emt 0:00:24]} 45. Kf3 {[%emt 0:00:28]} d3 {[%emt 0:01:10]} 46. g3 {[%emt 0:04:57]} Rd1 {[%emt 0:00:46]} 47. Ke3 {[%emt 0:01:29]} Rg1 {[%emt 0:00:14]} 48. Kf2 {[%emt 0:00:22]} Rd1 {[%emt 0:00:04]} 49. h4 {[%emt 0:01:28]} Rd2+ {[%emt 0:02:17]} 50. Ke3 {[%emt 0:03:17]} Re2+ {[%emt 0:00:13]} 51. Kf3 {[%emt 0:00:10]} Rd2 {[%emt 0:00:12]} 52. Ke4 {[%emt 0:01:03]} Re2+ {[%emt 0:00:07]} 53. Kf3 {[%emt 0:00:39]} Rd2 {[%emt 0:00:04]} 54. g4 {[%emt 0:01:33]} Rd1 {[%emt 0:02:08]} 55. f5 {[%emt 0:04:46]} gxf5 {[%emt 0:01:39]} 56. gxf5 {[%emt 0:00:11]} d2 {[%emt 0:00:31]} 57. Ke2 {[%emt 0:02:08]} Rh1 {[%emt 0:00:06]} 58. Kxd2 {[%emt 0:00:22]} Rxh4 {[%emt 0:00:05]} 1/2-1/2

[Event "HUN-chT Youth-Children 2018"]
[Site "Zalakaros"]
[Date "2018.07.26"]
[Round "2"]
[White "Borhy, Marcell"]
[Black "Polyik, Peter"]
[Result "1-0"]
[ECO "A40"]
[WhiteElo "2234"]
[BlackElo "2265"]
[Annotator "NA"]
[PlyCount "53"]
[EventDate "2018.07.26"]
[EventType "team-tourn"]
[EventCountry "HUN"]
[SourceTitle "playchess.com"]
[Source "ChessBase"]
[SourceQuality "1"]
[TimeControl "5400+30"]

1. d4 {[%emt 0:00:00]} g6 {[%emt 0:01:00]} 2. c4 {[%emt 0:00:25]} Bg7 {[%emt 0:00:07]} 3. Nf3 {[%emt 0:00:20]} d6 {[%emt 0:00:18]} 4. g3 {[%emt 0:00:50]} f5 {[%emt 0:00:46]} 5. Bg2 {[%emt 0:01:14]} Nf6 {[%emt 0:00:25]} 6. b3 {[%emt 0:02:21]} O-O {[%emt 0:02:10]} 7. Bb2 {[%emt 0:00:50]} c6 {[%emt 0:00:19]} 8. O-O {[%emt 0:00:38]} a5 {[%emt 0:00:19]} 9. Nc3 {[%emt 0:01:00]} Na6 {[%emt 0:03:50]} 10. Rc1 {[%emt 0:03:09]} Qc7 {[%emt 0:06:35]} 11. d5 {[%emt 0:05:38]} e5 {[%emt 0:01:47]} 12. dxe6 {[%emt 0:01:21]} Bxe6 {[%emt 0:00:11]} 13. Nd4 {[%emt 0:06:57]} Bd7 {[%emt 0:01:23]} 14. e3 {[%emt 0:09:34]} Nc5 {[%emt 0:04:05]} 15. Qc2 {[%emt 0:00:41]} Rae8 {[%emt 0:07:57]} 16. Rcd1 {[%emt 0:03:13]} Nfe4 {[%emt 0:11:52]} 17. Ba3 {[%emt 0:04:47]} g5 {[%emt 0:14:25]} 18. Nce2 {[%emt 0:04:57]} Na6 {[%emt 0:06:15]} 19. g4 {[%emt 0:03:41]} c5 {[%emt 0:10:01]} 20. Nxf5 {[%emt 0:01:41]} Rxf5 {[%emt 0:00:39]} 21. Bxe4 {[%emt 0:07:03]} Rf6 {[%emt 0:00:55]} 22. Bxh7+ {[%emt 0:02:49]} Kh8 {[%emt 0:00:09]} 23. Bf5 {[%emt 0:10:36]} Bc6 {[%emt 0:00:25]} 24. Ng3 {[%emt 0:00:51]} Rh6 {[%emt 0:05:11]} 25. Bb2 {[%emt 0:03:40]} Nb4 {[%emt 0:00:57]} 26. Qe2 {[%emt 0:00:46]} d5 {[%emt 0:02:48]} 27. a3 {[%emt 0:00:44]} 1-0

[Event "HUN-chT Youth-Children 2018"]
[Site "Zalakaros"]
[Date "2018.07.26"]
[Round "2"]
[White "Bohus, Adam"]
[Black "Marosi, Levente"]
[Result "1/2-1/2"]
[ECO "B07"]
[WhiteElo "2231"]
[BlackElo "2337"]
[Annotator "NA"]
[PlyCount "103"]
[EventDate "2018.07.26"]
[EventType "team-tourn"]
[EventCountry "HUN"]
[SourceTitle "playchess.com"]
[Source "ChessBase"]
[SourceQuality "1"]
[TimeControl "5400+30"]

1. e4 {[%emt 0:01:17]} d6 {[%emt 0:02:06]} 2. d4 {[%emt 0:01:14]} Nf6 {[%emt 0:00:04]} 3. Nc3 {[%emt 0:01:16]} e5 {[%emt 0:00:06]} 4. Nge2 {[%emt 0:06:28]} Nbd7 {[%emt 0:00:17]} 5. g3 {[%emt 0:00:56]} c6 {[%emt 0:02:26]} 6. Bg2 {[%emt 0:00:38]} Be7 {[%emt 0:01:48]} 7. O-O {[%emt 0:02:23]} O-O {[%emt 0:00:17]} 8. h3 {[%emt 0:02:02]} b5 {[%emt 0:04:28]} 9. a3 {[%emt 0:00:41]} Bb7 {[%emt 0:00:17]} 10. Be3 {[%emt 0:05:45]} Qc7 {[%emt 0:07:17]} 11. g4 {[%emt 0:03:44]} a5 {[%emt 0:07:27]} 12. Ng3 {[%emt 0:04:24]} g6 {[%emt 0:08:30]} 13. f4 {[%emt 0:37:26]} b4 {[%emt 0:11:51]} 14. Nce2 {[%emt 0:08:02]} Nb6 {[%emt 0:08:53]} 15. f5 {[%emt 0:12:52]} Nfd7 {[%emt 0:11:30]} 16. c3 {[%emt 0:02:16]} bxa3 {[%emt 0:08:08]} 17. bxa3 {[%emt 0:00:16]} Qd8 {[%emt 0:06:32]} 18. Qc1 {[%emt 0:05:06]} Nc4 {[%emt 0:04:37]} 19. Bh6 {[%emt 0:00:33]} Re8 {[%emt 0:01:05]} 20. g5 {[%emt 0:00:49]} Bf8 {[%emt 0:04:35]} 21. Bxf8 {[%emt 0:00:25]} Nxf8 {[%emt 0:01:19]} 22. h4 {[%emt 0:00:17]} Rb8 {[%emt 0:02:25]} 23. h5 {[%emt 0:00:39]} Bc8 {[%emt 0:03:28]} 24. Rf2 {[%emt 0:00:39]} Rb2 {[%emt 0:00:54]} 25. Bf1 {[%emt 0:01:44]} Ba6 {[%emt 0:01:56]} 26. Qe1 {[%emt 0:00:36]} Qxg5 {[%emt 0:00:29]} 27. fxg6 {[%emt 0:00:12]} fxg6 {[%emt 0:00:29]} 28. hxg6 {[%emt 0:00:35]} hxg6 {[%emt 0:00:04]} 29. Bh3 {[%emt 0:00:44]} Bc8 {[%emt 0:00:47]} 30. Bg2 {[%emt 0:00:30]} Bg4 {[%emt 0:00:42]} 31. Nc1 {[%emt 0:00:27]} Rxf2 {[%emt 0:00:34]} 32. Qxf2 {[%emt 0:00:02]} Ne6 {[%emt 0:00:22]} 33. Nd3 {[%emt 0:00:37]} Rf8 {[%emt 0:00:08]} 34. Qa2 {[%emt 0:00:38]} Qe3+ {[%emt 0:00:56]} 35. Nf2 {[%emt 0:00:01]} Nd2 {[%emt 0:00:32]} 36. Nf5 {[%emt 0:00:45]} Bxf5 {[%emt 0:00:34]} 37. exf5 {[%emt 0:00:02]} Rxf5 {[%emt 0:00:30]} 38. Qxe6+ {[%emt 0:00:08]} Kg7 {[%emt 0:00:15]} 39. Qe7+ {[%emt 0:00:36]} Rf7 {[%emt 0:00:04]} 40. Qh4 {[%emt 0:00:10]} g5 {[%emt 0:00:51]} 41. Qh3 {[%emt 0:01:45]} Qxf2+ {[%emt 0:00:04]} 42. Kh1 {[%emt 0:00:04]} exd4 {[%emt 0:01:07]} 43. cxd4 {[%emt 0:00:01]} c5 {[%emt 0:00:43]} 44. dxc5 {[%emt 0:00:41]} dxc5 {[%emt 0:00:04]} 45. Rd1 {[%emt 0:00:05]} Rf4 {[%emt 0:00:56]} 46. Qd7+ {[%emt 0:00:54]} Kg6 {[%emt 0:00:19]} 47. Qd3+ {[%emt 0:01:09]} Kg7 {[%emt 0:00:31]} 48. Qd7+ {[%emt 0:00:46]} Kg6 {[%emt 0:00:26]} 49. Qd3+ {[%emt 0:00:34]} Kg7 {[%emt 0:00:38]} 50. Qd7+ {[%emt 0:00:21]} Kg6 {[%emt 0:00:24]} 51. Qd3+ {[%emt 0:00:26]} Kg7 {[%emt 0:00:31]} 52. Qd7+ {[%emt 0:00:07]} 1/2-1/2

[Event "HUN-chT Youth-Children 2018"]
[Site "Zalakaros"]
[Date "2018.07.26"]
[Round "2"]
[White "Margl, Roland"]
[Black "Hegedus, Dominik"]
[Result "1-0"]
[ECO "E65"]
[WhiteElo "2183"]
[BlackElo "2005"]
[Annotator "NA"]
[PlyCount "84"]
[EventDate "2018.07.26"]
[EventType "team-tourn"]
[EventCountry "HUN"]
[SourceTitle "playchess.com"]
[Source "ChessBase"]
[SourceQuality "1"]
[TimeControl "5400+30"]

1. Nf3 {[%emt 0:00:00]} Nf6 {[%emt 0:00:25]} 2. c4 {[%emt 0:00:00]} g6 {[%emt 0:00:13]} 3. g3 Bg7 {[%emt 0:00:07]} 4. Bg2 {[%emt 0:00:00]} d6 {[%emt 0:00:16]} 5. d4 {[%emt 0:00:00]} O-O {[%emt 0:00:09]} 6. O-O {[%emt 0:00:00]} c5 {[%emt 0:01:05]} 7. Nc3 {[%emt 0:00:08]} Na6 {[%emt 0:07:02]} 8. b3 {[%emt 0:05:15]} Nc7 9. Bb2 {[%emt 0:03:13]} Rb8 {[%emt 0:02:21]} 10. Qc2 Ne6 {[%emt 0:08:49]} 11. e3 {[%emt 0:10:43]} a6 {[%emt 0:01:25]} 12. Rad1 {[%emt 0:01:46]} Bd7 13. d5 {[%emt 0:04:28]} Nc7 {[%emt 0:10:11]} 14. h3 {[%emt 0:00:46]} b5 {[%emt 0:00:27]} 15. Ba1 {[%emt 0:01:40]} Qc8 {[%emt 0:01:42]} 16. Kh2 {[%emt 0:01:01]} Na8 {[%emt 0:06:17]} 17. e4 {[%emt 0:03:28]} bxc4 {[%emt 0:09:04]} 18. bxc4 {[%emt 0:00:11]} Nb6 {[%emt 0:00:05]} 19. Qe2 {[%emt 0:03:09]} a5 {[%emt 0:04:21]} 20. Rfe1 {[%emt 0:01:37]} Qa6 {[%emt 0:00:55]} 21. Bf1 {[%emt 0:00:25]} Ne8 {[%emt 0:04:35]} 22. e5 {[%emt 0:04:21]} Qa8 {[%emt 0:10:36]} 23. Ne4 {[%emt 0:07:05]} Bf5 {[%emt 0:11:36]} 24. g4 {[%emt 0:09:01]} Bxe4 {[%emt 0:00:53]} 25. Qxe4 {[%emt 0:00:11]} Qa7 {[%emt 0:04:15]} 26. Bd3 {[%emt 0:02:53]} Qc7 {[%emt 0:06:08]} 27. Kg2 {[%emt 0:01:19]} a4 {[%emt 0:02:48]} 28. a3 {[%emt 0:03:05]} Rb7 {[%emt 0:01:03]} 29. Qe2 {[%emt 0:01:37]} Kh8 {[%emt 0:02:47]} 30. Bc3 {[%emt 0:05:08]} Kg8 {[%emt 0:01:44]} 31. Rb1 {[%emt 0:01:08]} Ra7 {[%emt 0:01:36]} 32. Rb2 {[%emt 0:00:29]} Nd7 {[%emt 0:02:19]} 33. exd6 {[%emt 0:02:29]} exd6 {[%emt 0:01:07]} 34. Qc2 {[%emt 0:01:27]} Nef6 {[%emt 0:00:35]} 35. Reb1 {[%emt 0:00:56]} Re8 {[%emt 0:00:29]} 36. Rb5 {[%emt 0:00:54]} Ne5 {[%emt 0:00:29]} 37. Nxe5 {[%emt 0:04:07]} dxe5 {[%emt 0:00:03]} 38. Be4 {[%emt 0:01:16]} Qc8 {[%emt 0:00:58]} 39. Ba5 {[%emt 0:02:57]} Nxe4 {[%emt 0:00:29]} 40. Qxe4 {[%emt 0:00:06]} f5 {[%emt 0:00:06]} 41. Qe2 {[%emt 0:04:03]} Rf7 {[%emt 0:00:53]} 42. gxf5 {[%emt 0:08:55]} Qxf5 1-0

[Event "HUN-chT Youth-Children 2018"]
[Site "Zalakaros"]
[Date "2018.07.26"]
[Round "2"]
[White "Egyed, Judit"]
[Black "Kovacs, Bence"]
[Result "1-0"]
[ECO "C70"]
[WhiteElo "2171"]
[BlackElo "1994"]
[Annotator "NA"]
[PlyCount "77"]
[EventDate "2018.07.26"]
[EventType "team-tourn"]
[EventCountry "HUN"]
[SourceTitle "playchess.com"]
[Source "ChessBase"]
[SourceQuality "1"]
[TimeControl "5400+30"]

1. e4 {[%emt 0:00:00]} e5 {[%emt 0:00:04]} 2. Nf3 {[%emt 0:00:00]} Nc6 {[%emt 0:00:05]} 3. Bb5 {[%emt 0:00:02]} a6 {[%emt 0:00:04]} 4. Ba4 {[%emt 0:00:03]} Nge7 {[%emt 0:00:04]} 5. O-O {[%emt 0:01:23]} g6 {[%emt 0:00:12]} 6. c3 {[%emt 0:01:18]} Bg7 {[%emt 0:00:05]} 7. d4 {[%emt 0:03:16]} exd4 {[%emt 0:00:05]} 8. cxd4 {[%emt 0:00:04]} b5 {[%emt 0:00:06]} 9. Bc2 {[%emt 0:01:05]} O-O {[%emt 0:02:10]} 10. d5 {[%emt 0:10:13]} Na5 {[%emt 0:02:17]} 11. Nc3 {[%emt 0:01:54]} d6 {[%emt 0:01:13]} 12. Nd4 {[%emt 0:06:11]} b4 {[%emt 0:04:35]} 13. Nce2 {[%emt 0:01:53]} c5 {[%emt 0:00:29]} 14. dxc6 {[%emt 0:00:43]} Nexc6 {[%emt 0:01:50]} 15. Nxc6 {[%emt 0:11:48]} Nxc6 {[%emt 0:00:09]} 16. Bb3 {[%emt 0:16:35]} Be6 {[%emt 0:06:18]} 17. Rb1 {[%emt 0:05:00]} Re8 {[%emt 0:03:30]} 18. Be3 {[%emt 0:08:32]} Bxb3 {[%emt 0:12:13]} 19. Qxb3 {[%emt 0:00:05]} Rxe4 {[%emt 0:01:08]} 20. Qd5 {[%emt 0:00:06]} Qe8 {[%emt 0:05:05]} 21. Rfc1 {[%emt 0:00:20]} Na7 {[%emt 0:15:08]} 22. Rc7 {[%emt 0:08:56]} Nb5 {[%emt 0:10:33]} 23. Rxf7 {[%emt 0:03:17]} Re5 {[%emt 0:00:24]} 24. Qb7 {[%emt 0:02:12]} Qxf7 {[%emt 0:12:52]} 25. Qxa8+ {[%emt 0:00:06]} Re8 {[%emt 0:01:20]} 26. Qxa6 {[%emt 0:01:35]} Qf5 {[%emt 0:01:36]} 27. Rd1 {[%emt 0:00:51]} Bxb2 {[%emt 0:02:00]} 28. Qa4 {[%emt 0:02:24]} Bc3 {[%emt 0:10:26]} 29. Nxc3 {[%emt 0:05:18]} bxc3 {[%emt 0:00:06]} 30. Qb3+ {[%emt 0:01:05]} Kg7 {[%emt 0:02:44]} 31. a4 {[%emt 0:00:50]} c2 {[%emt 0:00:44]} 32. Rc1 {[%emt 0:00:10]} Nc7 {[%emt 0:02:27]} 33. Qc3+ {[%emt 0:01:08]} Kg8 {[%emt 0:01:32]} 34. Qxc7 {[%emt 0:00:33]} Rc8 {[%emt 0:00:11]} 35. Qb7 {[%emt 0:02:50]} Rc4 {[%emt 0:02:47]} 36. Bh6 {[%emt 0:01:08]} Qe5 {[%emt 0:01:09]} 37. Qb8+ {[%emt 0:01:06]} Kf7 {[%emt 0:00:04]} 38. Qf8+ {[%emt 0:00:12]} Ke6 {[%emt 0:00:03]} 39. Qg8+ {[%emt 0:00:06] Kd5} 1-0